[Event "Titled Tuesday Blitz January 31 Early 2023"]
[White "Le, Tuan Minh"]
[Black "Grandelius, Nils"]
[WhiteFideId "12401153"]
[BlackFideId "1710400"]
[WhiteElo "2542"]
[BlackElo "2664"]
[Result "1-0"]
[Round "11"]
[TimeControl "180+2"]
[Date "2023.01.31"]
[WhiteClock "0:00:04"]
[BlackClock "0:00:05"]

1. d4 {[%clk 0:02:41]}  d5 {[%clk 0:02:59]} 2. Nf3 {[%clk 0:02:39]}  Nf6 {[%clk 0:02:59]} 3. Bf4 {[%clk 0:02:39]}  c5 {[%clk 0:03:00]} 4. c3 {[%clk 0:02:39]}  cxd4 {[%clk 0:02:55]} 5. cxd4 {[%clk 0:02:38]}  Nc6 {[%clk 0:02:56]} 6. Nc3 {[%clk 0:02:38]}  a6 {[%clk 0:02:56]} 7. Rc1 {[%clk 0:02:37]}  Bf5 {[%clk 0:02:55]} 8. e3 {[%clk 0:02:31]}  e6 {[%clk 0:02:54]} 9. Qb3 {[%clk 0:02:31]}  Bb4 {[%clk 0:02:54]} 10. Be2 {[%clk 0:02:23]}  Ne4 {[%clk 0:02:41]} 11. h3 {[%clk 0:01:56]}  O-O {[%clk 0:02:35]} 12. O-O {[%clk 0:01:56]}  Bxc3 {[%clk 0:02:31]} 13. bxc3 {[%clk 0:01:54]}  Na5 {[%clk 0:02:21]} 14. Qb4 {[%clk 0:01:55]}  Rc8 {[%clk 0:02:15]} 15. a4 {[%clk 0:01:54]}  h6 {[%clk 0:02:04]} 16. Rfd1 {[%clk 0:01:48]}  Re8 {[%clk 0:01:40]} 17. Ne5 {[%clk 0:01:03]}  f6 {[%clk 0:01:22]} 18. Nd3 {[%clk 0:01:03]}  Rc4 {[%clk 0:01:14]} 19. Qa3 {[%clk 0:01:04]}  Qc8 {[%clk 0:00:53]} 20. Nc5 {[%clk 0:01:02]}  Nxc5 {[%clk 0:00:45]} 21. Bxc4 {[%clk 0:00:56]}  Nxc4 {[%clk 0:00:42]} 22. Qxc5 {[%clk 0:00:57]}  Qxc5 {[%clk 0:00:37]} 23. dxc5 {[%clk 0:00:58]}  Rc8 {[%clk 0:00:29]} 24. Bd6 {[%clk 0:00:58]}  Kf7 {[%clk 0:00:22]} 25. Rd4 {[%clk 0:00:53]}  Rc6 {[%clk 0:00:15]} 26. Re1 {[%clk 0:00:50]}  b6 {[%clk 0:00:11]} 27. e4 {[%clk 0:00:15]}  bxc5 {[%clk 0:00:11]} 28. exd5 {[%clk 0:00:15]}  exd5 {[%clk 0:00:10]} 29. Re7+ {[%clk 0:00:08]}  Kg6 {[%clk 0:00:09]} 30. Rxc4 {[%clk 0:00:03]}  dxc4 {[%clk 0:00:09]} 31. Bf4 {[%clk 0:00:03]}  Bd3 {[%clk 0:00:05]} 32. a5 {[%clk 0:00:02]}  h5 {[%clk 0:00:05]} 33. Be3 {[%clk 0:00:02]}  Bf5 {[%clk 0:00:05]} 34. Ra7 {[%clk 0:00:01]}  Bc8 {[%clk 0:00:04]} 35. f3 {[%clk 0:00:01]}  Bf5 {[%clk 0:00:04]} 36. g4 {[%clk 0:00:02]}  hxg4 {[%clk 0:00:04]} 37. hxg4 {[%clk 0:00:03]}  Bd3 {[%clk 0:00:05]} 38. Kf2 {[%clk 0:00:03]}  Kh7 {[%clk 0:00:06]} 39. Bf4 {[%clk 0:00:03]}  Kg8 {[%clk 0:00:06]} 40. Kg3 {[%clk 0:00:03]}  g5 {[%clk 0:00:05]} 41. Bc7 {[%clk 0:00:04]}  Re6 {[%clk 0:00:05]} 42. Bb6 {[%clk 0:00:04]}  Re3 {[%clk 0:00:04]} 43. Rxa6 {[%clk 0:00:03]}  Be4 {[%clk 0:00:04]} 44. Kf2 {[%clk 0:00:04]}  Rxf3+ {[%clk 0:00:05]} 45. Ke2 {[%clk 0:00:04]}  Rxc3 {[%clk 0:00:05]} 46. Bxc5 {[%clk 0:00:05]}  Rb3 {[%clk 0:00:04]} 47. Rxf6 {[%clk 0:00:04]}  c3 {[%clk 0:00:04]} 48. Rf8+ {[%clk 0:00:03]}  Kg7 {[%clk 0:00:04]} 49. Rc8 {[%clk 0:00:04]}  c2 {[%clk 0:00:04]} 50. Bd4+ {[%clk 0:00:04]}  Kf7 {[%clk 0:00:05]} 51. a6 {[%clk 0:00:04]}  Ra3 {[%clk 0:00:05]} 52. a7 {[%clk 0:00:04]}  Ke6 {[%clk 0:00:04]} 53. Be3 {[%clk 0:00:04]}  Bd5 {[%clk 0:00:03]} 54. Rxc2 {[%clk 0:00:01]}  Ra4 {[%clk 0:00:04]} 55. Rb2 {[%clk 0:00:01]}  Rxg4 {[%clk 0:00:04]} 56. Rb6+ {[%clk 0:00:01]}  Kd7 {[%clk 0:00:03]} 57. Bc5 {[%clk 0:00:02]}  Ra4 {[%clk 0:00:03]} 58. Rd6+ {[%clk 0:00:02]}  Kc7 {[%clk 0:00:04]} 59. Rxd5 {[%clk 0:00:03]}  Kc6 {[%clk 0:00:04]} 60. Rxg5 {[%clk 0:00:04]}  Ra5 {[%clk 0:00:05]} 61. Kd3 {[%clk 0:00:04]} 1-0


[Site "https://www.chess.com"]

[Event "Titled Tuesday Blitz January 31 Early 2023"]
[White "Sanal, Vahap"]
[Black "Urazayev, Arystanbek"]
[WhiteFideId "6300545"]
[BlackFideId "13709810"]
[WhiteElo "2600"]
[BlackElo "2460"]
[Result "1-0"]
[Round "11"]
[TimeControl "180+2"]
[Date "2023.01.31"]
[WhiteClock "0:00:21"]
[BlackClock "0:00:08"]

1. Nf3 {[%clk 0:03:00]}  d5 {[%clk 0:03:00]} 2. g3 {[%clk 0:03:00]}  b6 {[%clk 0:03:00]} 3. Bg2 {[%clk 0:03:00]}  Bb7 {[%clk 0:03:00]} 4. d4 {[%clk 0:03:00]}  e6 {[%clk 0:03:00]} 5. O-O {[%clk 0:03:00]}  Nf6 {[%clk 0:02:59]} 6. c4 {[%clk 0:03:00]}  dxc4 {[%clk 0:03:00]} 7. Qa4+ {[%clk 0:02:56]}  Nbd7 {[%clk 0:03:00]} 8. Qxc4 {[%clk 0:02:53]}  a6 {[%clk 0:02:58]} 9. Qc2 {[%clk 0:02:51]}  c5 {[%clk 0:02:56]} 10. Rd1 {[%clk 0:02:50]}  Rc8 {[%clk 0:02:56]} 11. Nc3 {[%clk 0:02:49]}  cxd4 {[%clk 0:02:55]} 12. Rxd4 {[%clk 0:02:41]}  Bc5 {[%clk 0:02:51]} 13. Rh4 {[%clk 0:02:42]}  b5 {[%clk 0:02:47]} 14. a3 {[%clk 0:02:35]}  Qb6 {[%clk 0:02:45]} 15. e4 {[%clk 0:02:32]}  h6 {[%clk 0:02:33]} 16. Bf4 {[%clk 0:02:01]}  O-O {[%clk 0:02:23]} 17. e5 {[%clk 0:01:55]}  Nd5 {[%clk 0:01:54]} 18. Bxh6 {[%clk 0:01:54]}  Bxf2+ {[%clk 0:01:34]} 19. Qxf2 {[%clk 0:01:15]}  Qxf2+ {[%clk 0:01:33]} 20. Kxf2 {[%clk 0:01:16]}  Nxc3 {[%clk 0:01:33]} 21. bxc3 {[%clk 0:01:13]}  gxh6 {[%clk 0:01:34]} 22. Rxh6 {[%clk 0:01:06]}  Bxf3 {[%clk 0:01:31]} 23. Bxf3 {[%clk 0:01:05]}  Nxe5 {[%clk 0:01:31]} 24. Rb1 {[%clk 0:01:00]}  Rxc3 {[%clk 0:01:27]} 25. Be2 {[%clk 0:01:00]}  Rxa3 {[%clk 0:01:21]} 26. Rb4 {[%clk 0:00:58]}  Kg7 {[%clk 0:00:52]} 27. Rh5 {[%clk 0:00:58]}  Nd3+ {[%clk 0:00:52]} 28. Bxd3 {[%clk 0:00:57]}  Rxd3 {[%clk 0:00:53]} 29. Rg4+ {[%clk 0:00:56]}  Kf6 {[%clk 0:00:53]} 30. Rc5 {[%clk 0:00:57]}  Rfd8 {[%clk 0:00:48]} 31. Rf4+ {[%clk 0:00:51]}  Ke7 {[%clk 0:00:48]} 32. h4 {[%clk 0:00:51]}  f5 {[%clk 0:00:41]} 33. h5 {[%clk 0:00:38]}  Rd2+ {[%clk 0:00:40]} 34. Ke1 {[%clk 0:00:36]}  Rh2 {[%clk 0:00:38]} 35. g4 {[%clk 0:00:34]}  Rdd2 {[%clk 0:00:27]} 36. gxf5 {[%clk 0:00:23]}  Ra2 {[%clk 0:00:11]} 37. f6+ {[%clk 0:00:23]}  Kd6 {[%clk 0:00:11]} 38. Rc1 {[%clk 0:00:24]}  Rxh5 {[%clk 0:00:08]} 39. Rd1+ {[%clk 0:00:21]} 1-0


[Site "https://www.chess.com"]

[Event "Titled Tuesday Blitz January 31 Early 2023"]
[White "Kamsky, Gata"]
[Black "Shimanov, Aleksandr"]
[WhiteFideId "2000024"]
[BlackFideId "4198603"]
[WhiteElo "2665"]
[BlackElo "2581"]
[Result "1-0"]
[Round "11"]
[TimeControl "180+2"]
[Date "2023.01.31"]
[WhiteClock "0:00:42"]
[BlackClock "0:00:01"]

1. e4 {[%clk 0:03:00]}  d5 {[%clk 0:02:57]} 2. exd5 {[%clk 0:02:59]}  Qxd5 {[%clk 0:02:58]} 3. Nc3 {[%clk 0:02:59]}  Qe5+ {[%clk 0:02:58]} 4. Be2 {[%clk 0:02:56]}  Bg4 {[%clk 0:02:58]} 5. d4 {[%clk 0:02:55]}  Bxe2 {[%clk 0:02:58]} 6. Ngxe2 {[%clk 0:02:55]}  Qa5 {[%clk 0:02:57]} 7. d5 {[%clk 0:02:54]}  c6 {[%clk 0:02:57]} 8. O-O {[%clk 0:02:43]}  Nf6 {[%clk 0:02:57]} 9. Nf4 {[%clk 0:02:39]}  cxd5 {[%clk 0:02:57]} 10. b4 {[%clk 0:02:37]}  Qd8 {[%clk 0:02:55]} 11. Ncxd5 {[%clk 0:02:36]}  Nxd5 {[%clk 0:02:55]} 12. Qxd5 {[%clk 0:02:36]}  Qxd5 {[%clk 0:02:55]} 13. Nxd5 {[%clk 0:02:36]}  Na6 {[%clk 0:02:55]} 14. b5 {[%clk 0:02:36]}  O-O-O {[%clk 0:02:55]} 15. bxa6 {[%clk 0:02:30]}  Rxd5 {[%clk 0:02:55]} 16. axb7+ {[%clk 0:02:30]}  Kxb7 {[%clk 0:02:55]} 17. Rb1+ {[%clk 0:02:30]}  Kc6 {[%clk 0:02:53]} 18. Be3 {[%clk 0:02:24]}  Rd7 {[%clk 0:02:36]} 19. Rb3 {[%clk 0:02:15]}  e6 {[%clk 0:01:18]} 20. Rc3+ {[%clk 0:02:12]}  Kd6 {[%clk 0:01:00]} 21. Rc8 {[%clk 0:01:37]}  Ke5 {[%clk 0:00:25]} 22. Rb1 {[%clk 0:01:26]}  g6 {[%clk 0:00:15]} 23. Kf1 {[%clk 0:01:21]}  Bg7 {[%clk 0:00:10]} 24. Rb5+ {[%clk 0:01:21]}  Rd5 {[%clk 0:00:05]} 25. Rxd5+ {[%clk 0:01:20]}  Kxd5 {[%clk 0:00:06]} 26. Rxh8 {[%clk 0:01:20]}  Bxh8 {[%clk 0:00:06]} 27. Bxa7 {[%clk 0:01:20]}  Kc4 {[%clk 0:00:07]} 28. Ke2 {[%clk 0:01:19]}  Kb4 {[%clk 0:00:07]} 29. Kd3 {[%clk 0:01:17]}  Be5 {[%clk 0:00:07]} 30. h3 {[%clk 0:01:09]}  Bc7 {[%clk 0:00:06]} 31. c4 {[%clk 0:01:07]}  f5 {[%clk 0:00:05]} 32. Kd4 {[%clk 0:01:00]}  Bd6 {[%clk 0:00:01]} 33. Bb6 {[%clk 0:00:54]}  Bb8 {[%clk 0:00:01]} 34. f3 {[%clk 0:00:49]}  h5 {[%clk 0:00:01]} 35. c5 {[%clk 0:00:42]}  e5+ {[%clk 0:00:01]} 36. Kd5 {[%clk 0:00:42]} 1-0


[Site "https://www.chess.com"]

[Event "Titled Tuesday Blitz January 31 Early 2023"]
[White "Rasulov, Vugar"]
[Black "Bacrot, Etienne"]
[WhiteFideId "13402390"]
[BlackFideId "605506"]
[WhiteElo "2523"]
[BlackElo "2667"]
[Result "0-1"]
[Round "11"]
[TimeControl "180+2"]
[Date "2023.01.31"]
[WhiteClock "0:00:07"]
[BlackClock "0:00:09"]

1. e4 {[%clk 0:03:00]}  c5 {[%clk 0:03:00]} 2. Nf3 {[%clk 0:03:01]}  d6 {[%clk 0:03:00]} 3. Nc3 {[%clk 0:02:59]}  Nf6 {[%clk 0:03:00]} 4. e5 {[%clk 0:02:59]}  dxe5 {[%clk 0:02:59]} 5. Nxe5 {[%clk 0:03:00]}  a6 {[%clk 0:02:59]} 6. a4 {[%clk 0:02:59]}  Qd6 {[%clk 0:02:59]} 7. Nc4 {[%clk 0:02:58]}  Qc7 {[%clk 0:02:58]} 8. d3 {[%clk 0:02:55]}  Nbd7 {[%clk 0:02:54]} 9. g3 {[%clk 0:02:46]}  Qc6 {[%clk 0:02:51]} 10. Rg1 {[%clk 0:02:45]}  g6 {[%clk 0:02:43]} 11. Bg2 {[%clk 0:02:45]}  Qc7 {[%clk 0:02:42]} 12. Bf4 {[%clk 0:02:45]}  Qd8 {[%clk 0:02:36]} 13. Qe2 {[%clk 0:02:42]}  Bg7 {[%clk 0:02:36]} 14. Nd6+ {[%clk 0:02:38]}  Kf8 {[%clk 0:02:36]} 15. Nc4 {[%clk 0:02:34]}  Ra7 {[%clk 0:02:11]} 16. a5 {[%clk 0:02:09]}  b5 {[%clk 0:02:08]} 17. axb6 {[%clk 0:02:10]}  Nxb6 {[%clk 0:02:08]} 18. Kf1 {[%clk 0:02:01]}  Bg4 {[%clk 0:01:54]} 19. Bf3 {[%clk 0:01:55]}  Bh3+ {[%clk 0:01:40]} 20. Bg2 {[%clk 0:01:56]}  Be6 {[%clk 0:01:38]} 21. Na5 {[%clk 0:01:51]}  Qc8 {[%clk 0:01:32]} 22. Nc6 {[%clk 0:01:48]}  Rd7 {[%clk 0:01:29]} 23. Ne5 {[%clk 0:01:47]}  Rd4 {[%clk 0:01:25]} 24. Be3 {[%clk 0:01:47]}  Rb4 {[%clk 0:01:19]} 25. Nc6 {[%clk 0:01:40]}  Rxb2 {[%clk 0:00:24]} 26. Bxc5 {[%clk 0:01:39]}  Ng4 {[%clk 0:00:24]} 27. Bxe7+ {[%clk 0:01:32]}  Kg8 {[%clk 0:00:23]} 28. d4 {[%clk 0:00:57]}  Bc4 {[%clk 0:00:18]} 29. Ba3 {[%clk 0:00:46]}  Bxe2+ {[%clk 0:00:12]} 30. Nxe2 {[%clk 0:00:47]}  Nxh2+ {[%clk 0:00:09]} 31. Ke1 {[%clk 0:00:47]}  Bf6 {[%clk 0:00:09]} 32. Bxb2 {[%clk 0:00:45]}  Nc4 {[%clk 0:00:09]} 33. Bc1 {[%clk 0:00:42]}  Kg7 {[%clk 0:00:10]} 34. Rh1 {[%clk 0:00:31]}  Ng4 {[%clk 0:00:10]} 35. Kf1 {[%clk 0:00:27]}  Re8 {[%clk 0:00:10]} 36. Bf3 {[%clk 0:00:26]}  h5 {[%clk 0:00:10]} 37. Bf4 {[%clk 0:00:22]}  Qf5 {[%clk 0:00:09]} 38. Kg2 {[%clk 0:00:17]}  Qxc2 {[%clk 0:00:07]} 39. Rac1 {[%clk 0:00:16]}  Qa2 {[%clk 0:00:06]} 40. Nc3 {[%clk 0:00:15]}  Nce3+ {[%clk 0:00:06]} 41. Bxe3 {[%clk 0:00:13]}  Nxe3+ {[%clk 0:00:06]} 42. Kg1 {[%clk 0:00:14]}  Qd2 {[%clk 0:00:07]} 43. Ne2 {[%clk 0:00:11]}  Ng4 {[%clk 0:00:06]} 44. Ne5 {[%clk 0:00:06]}  Bxe5 {[%clk 0:00:06]} 45. dxe5 {[%clk 0:00:06]}  Rxe5 {[%clk 0:00:06]} 46. Kg2 {[%clk 0:00:04]}  Rxe2 {[%clk 0:00:06]} 47. Bxe2 {[%clk 0:00:05]}  Qxe2 {[%clk 0:00:07]} 48. Rhf1 {[%clk 0:00:05]}  Ne3+ {[%clk 0:00:07]} 49. Kg1 {[%clk 0:00:05]}  Nxf1 {[%clk 0:00:07]} 50. Rxf1 {[%clk 0:00:06]}  Qxf1+ {[%clk 0:00:08]} 51. Kxf1 {[%clk 0:00:07]}  a5 {[%clk 0:00:09]} 52. Ke2 {[%clk 0:00:07]}  a4 {[%clk 0:00:09]} 0-1


[Site "https://www.chess.com"]

[Event "Titled Tuesday Blitz January 31 Early 2023"]
[White "Salimova, Nurgyul"]
[Black "Dominguez Perez, Leinier"]
[WhiteFideId "2915138"]
[BlackFideId "3503240"]
[WhiteElo "2391"]
[BlackElo "2739"]
[Result "0-1"]
[Round "11"]
[TimeControl "180+2"]
[Date "2023.01.31"]
[WhiteClock "0:00:06"]
[BlackClock "0:00:51"]

1. d4 {[%clk 0:03:00]}  d5 {[%clk 0:02:59]} 2. Nf3 {[%clk 0:03:01]}  c6 {[%clk 0:02:58]} 3. c4 {[%clk 0:03:00]}  dxc4 {[%clk 0:02:58]} 4. Nc3 {[%clk 0:02:58]}  b5 {[%clk 0:02:53]} 5. e4 {[%clk 0:02:49]}  Nf6 {[%clk 0:02:42]} 6. e5 {[%clk 0:02:49]}  Nd5 {[%clk 0:02:41]} 7. a4 {[%clk 0:02:50]}  h6 {[%clk 0:02:33]} 8. Be2 {[%clk 0:02:45]}  e6 {[%clk 0:02:19]} 9. O-O {[%clk 0:02:45]}  Be7 {[%clk 0:02:13]} 10. Ne4 {[%clk 0:02:44]}  Nd7 {[%clk 0:02:07]} 11. b3 {[%clk 0:02:37]}  cxb3 {[%clk 0:02:02]} 12. axb5 {[%clk 0:02:29]}  cxb5 {[%clk 0:01:58]} 13. Bxb5 {[%clk 0:02:16]}  Rb8 {[%clk 0:01:52]} 14. Qxb3 {[%clk 0:02:11]}  a6 {[%clk 0:01:50]} 15. Bxd7+ {[%clk 0:02:10]}  Bxd7 {[%clk 0:01:50]} 16. Qd1 {[%clk 0:02:03]}  O-O {[%clk 0:01:42]} 17. Ba3 {[%clk 0:02:02]}  Nb4 {[%clk 0:01:34]} 18. Nc5 {[%clk 0:01:45]}  Bc6 {[%clk 0:01:32]} 19. Bxb4 {[%clk 0:01:38]}  Rxb4 {[%clk 0:01:31]} 20. Nxa6 {[%clk 0:01:32]}  Bxf3 {[%clk 0:01:30]} 21. Qxf3 {[%clk 0:01:31]}  Rxd4 {[%clk 0:01:31]} 22. Rfd1 {[%clk 0:01:26]}  Qb6 {[%clk 0:01:19]} 23. Rdb1 {[%clk 0:01:11]}  Ra4 {[%clk 0:01:18]} 24. Qd3 {[%clk 0:00:51]}  Rxa1 {[%clk 0:01:14]} 25. Rxa1 {[%clk 0:00:52]}  Rd8 {[%clk 0:01:14]} 26. Qe2 {[%clk 0:00:48]}  Bg5 {[%clk 0:01:12]} 27. h4 {[%clk 0:00:30]}  Rd2 {[%clk 0:01:03]} 28. Qf3 {[%clk 0:00:17]}  Rxf2 {[%clk 0:00:59]} 29. Qa8+ {[%clk 0:00:17]}  Kh7 {[%clk 0:00:59]} 30. hxg5 {[%clk 0:00:16]}  Ra2+ {[%clk 0:00:54]} 31. Kh2 {[%clk 0:00:16]}  Rxa1 {[%clk 0:00:55]} 32. Qe4+ {[%clk 0:00:17]}  g6 {[%clk 0:00:55]} 33. Qf4 {[%clk 0:00:14]}  Qg1+ {[%clk 0:00:52]} 34. Kg3 {[%clk 0:00:09]}  Ra3+ {[%clk 0:00:53]} 35. Kh4 {[%clk 0:00:06]}  Qh1+ {[%clk 0:00:52]} 36. Kg4 {[%clk 0:00:06]}  h5# {[%clk 0:00:51]} 0-1


[Site "https://www.chess.com"]

[Event "Titled Tuesday Blitz January 31 Early 2023"]
[White "Galchenko, Matvey"]
[Black "Sarana, Alexey"]
[WhiteFideId "24175480"]
[BlackFideId "24133795"]
[WhiteElo "2438"]
[BlackElo "2685"]
[Result "0-1"]
[Round "11"]
[TimeControl "180+2"]
[Date "2023.01.31"]
[WhiteClock "0:00:09"]
[BlackClock "0:00:21"]

1. e4 {[%clk 0:02:55]}  c5 {[%clk 0:02:58]} 2. c3 {[%clk 0:02:55]}  d5 {[%clk 0:02:58]} 3. exd5 {[%clk 0:02:56]}  Qxd5 {[%clk 0:02:59]} 4. d4 {[%clk 0:02:56]}  Nf6 {[%clk 0:02:59]} 5. Nf3 {[%clk 0:02:56]}  Nc6 {[%clk 0:02:58]} 6. dxc5 {[%clk 0:02:56]}  Qxd1+ {[%clk 0:02:53]} 7. Kxd1 {[%clk 0:02:57]}  e5 {[%clk 0:02:54]} 8. b4 {[%clk 0:02:56]}  Bg4 {[%clk 0:02:54]} 9. Be3 {[%clk 0:02:41]}  Nd5 {[%clk 0:02:52]} 10. Kc2 {[%clk 0:02:36]}  O-O-O {[%clk 0:02:48]} 11. Nbd2 {[%clk 0:02:32]}  f5 {[%clk 0:02:24]} 12. Bg5 {[%clk 0:02:06]}  Re8 {[%clk 0:02:24]} 13. Bb5 {[%clk 0:02:00]}  h6 {[%clk 0:02:21]} 14. Bc4 {[%clk 0:01:35]}  Ndxb4+ {[%clk 0:01:43]} 15. cxb4 {[%clk 0:01:35]}  hxg5 {[%clk 0:01:44]} 16. a3 {[%clk 0:01:26]}  Bxf3 {[%clk 0:01:28]} 17. Nxf3 {[%clk 0:01:26]}  g4 {[%clk 0:01:28]} 18. Ng5 {[%clk 0:01:22]}  Be7 {[%clk 0:01:27]} 19. Nf7 {[%clk 0:01:08]}  Rhf8 {[%clk 0:01:27]} 20. Rhe1 {[%clk 0:01:05]}  e4 {[%clk 0:01:20]} 21. Rad1 {[%clk 0:01:03]}  Kb8 {[%clk 0:01:14]} 22. Kb3 {[%clk 0:00:55]}  Bf6 {[%clk 0:01:12]} 23. Rd7 {[%clk 0:00:54]}  Nd4+ {[%clk 0:01:04]} 24. Ka4 {[%clk 0:00:49]}  Re7 {[%clk 0:01:02]} 25. Rxe7 {[%clk 0:00:43]}  Bxe7 {[%clk 0:01:02]} 26. Rd1 {[%clk 0:00:43]}  Bf6 {[%clk 0:01:02]} 27. Nd6 {[%clk 0:00:39]}  Be5 {[%clk 0:00:57]} 28. Nf7 {[%clk 0:00:38]}  Bf6 {[%clk 0:00:51]} 29. Nd6 {[%clk 0:00:35]}  a6 {[%clk 0:00:34]} 30. Bd5 {[%clk 0:00:33]}  Rd8 {[%clk 0:00:31]} 31. Ka5 {[%clk 0:00:21]}  Ka7 {[%clk 0:00:23]} 32. Ba2 {[%clk 0:00:08]}  Rxd6 {[%clk 0:00:23]} 33. cxd6 {[%clk 0:00:09]}  b5 {[%clk 0:00:23]} 34. Rc1 {[%clk 0:00:08]}  Bd8+ {[%clk 0:00:20]} 35. Rc7+ {[%clk 0:00:08]}  Bxc7+ {[%clk 0:00:21]} 36. dxc7 {[%clk 0:00:09]}  Nc6# {[%clk 0:00:21]} 0-1


[Site "https://www.chess.com"]

[Event "Titled Tuesday Blitz January 31 Early 2023"]
[White "Deac, Bogdan-Daniel"]
[Black "Cherniaiev, Tykhon"]
[WhiteFideId "1226380"]
[BlackFideId "14182360"]
[WhiteElo "2700"]
[BlackElo "2330"]
[Result "1-0"]
[Round "11"]
[TimeControl "180+2"]
[Date "2023.01.31"]
[WhiteClock "0:00:18"]
[BlackClock "0:00:21"]

1. b3 {[%clk 0:03:00]}  Nf6 {[%clk 0:02:59]} 2. Bb2 {[%clk 0:02:52]}  e6 {[%clk 0:02:58]} 3. Nf3 {[%clk 0:02:52]}  d5 {[%clk 0:02:56]} 4. c4 {[%clk 0:02:53]}  c5 {[%clk 0:02:53]} 5. cxd5 {[%clk 0:02:52]}  exd5 {[%clk 0:02:53]} 6. g3 {[%clk 0:02:50]}  Nc6 {[%clk 0:02:53]} 7. Bg2 {[%clk 0:02:50]}  Be7 {[%clk 0:02:53]} 8. O-O {[%clk 0:02:50]}  O-O {[%clk 0:02:54]} 9. d4 {[%clk 0:02:50]}  cxd4 {[%clk 0:02:53]} 10. Nxd4 {[%clk 0:02:50]}  a6 {[%clk 0:02:54]} 11. Nc3 {[%clk 0:02:50]}  Bg4 {[%clk 0:02:53]} 12. Rc1 {[%clk 0:02:48]}  Rc8 {[%clk 0:02:52]} 13. h3 {[%clk 0:02:47]}  Bh5 {[%clk 0:02:52]} 14. Nf5 {[%clk 0:02:35]}  Bg6 {[%clk 0:02:24]} 15. Nxe7+ {[%clk 0:01:58]}  Nxe7 {[%clk 0:02:23]} 16. e3 {[%clk 0:01:55]}  Re8 {[%clk 0:02:15]} 17. Ne2 {[%clk 0:01:53]}  Rxc1 {[%clk 0:02:04]} 18. Qxc1 {[%clk 0:01:54]}  Nc6 {[%clk 0:01:58]} 19. Nf4 {[%clk 0:01:49]}  Be4 {[%clk 0:01:50]} 20. Bxf6 {[%clk 0:01:47]}  Qxf6 {[%clk 0:01:51]} 21. Nxd5 {[%clk 0:01:47]}  Qf5 {[%clk 0:01:40]} 22. Rd1 {[%clk 0:01:45]}  Bxg2 {[%clk 0:01:35]} 23. Kxg2 {[%clk 0:01:45]}  h6 {[%clk 0:01:29]} 24. g4 {[%clk 0:01:24]}  Qe5 {[%clk 0:01:07]} 25. Qc3 {[%clk 0:01:23]}  Qe6 {[%clk 0:00:57]} 26. Nc7 {[%clk 0:01:19]}  Qe4+ {[%clk 0:00:57]} 27. Kg1 {[%clk 0:01:13]}  Rc8 {[%clk 0:00:49]} 28. Nd5 {[%clk 0:00:37]}  Qf3 {[%clk 0:00:48]} 29. Qd3 {[%clk 0:00:37]}  Ne5 {[%clk 0:00:20]} 30. Qd4 {[%clk 0:00:34]}  Qxh3 {[%clk 0:00:18]} 31. Qxe5 {[%clk 0:00:26]}  Qxg4+ {[%clk 0:00:18]} 32. Kh2 {[%clk 0:00:26]}  Qh4+ {[%clk 0:00:13]} 33. Kg2 {[%clk 0:00:25]}  Qg4+ {[%clk 0:00:12]} 34. Qg3 {[%clk 0:00:22]}  Qxd1 {[%clk 0:00:12]} 35. Ne7+ {[%clk 0:00:23]}  Kh7 {[%clk 0:00:12]} 36. Nxc8 {[%clk 0:00:23]}  Qc2 {[%clk 0:00:10]} 37. Nd6 {[%clk 0:00:20]}  Qc6+ {[%clk 0:00:10]} 38. e4 {[%clk 0:00:20]}  f5 {[%clk 0:00:07]} 39. Qe5 {[%clk 0:00:19]}  fxe4 {[%clk 0:00:07]} 40. Qxe4+ {[%clk 0:00:19]}  Qxe4+ {[%clk 0:00:07]} 41. Nxe4 {[%clk 0:00:20]}  Kg6 {[%clk 0:00:07]} 42. Nc5 {[%clk 0:00:20]}  Kf6 {[%clk 0:00:07]} 43. Nxb7 {[%clk 0:00:20]}  Ke5 {[%clk 0:00:08]} 44. Nc5 {[%clk 0:00:21]}  a5 {[%clk 0:00:08]} 45. Nb7 {[%clk 0:00:21]}  a4 {[%clk 0:00:08]} 46. bxa4 {[%clk 0:00:21]}  Kd5 {[%clk 0:00:09]} 47. Nd8 {[%clk 0:00:20]}  Kc5 {[%clk 0:00:09]} 48. a3 {[%clk 0:00:18]}  Kb6 {[%clk 0:00:09]} 49. Ne6 {[%clk 0:00:18]}  Ka5 {[%clk 0:00:10]} 50. Nxg7 {[%clk 0:00:18]}  Kxa4 {[%clk 0:00:11]} 51. Nf5 {[%clk 0:00:19]}  Kxa3 {[%clk 0:00:12]} 52. Nxh6 {[%clk 0:00:19]}  Kb4 {[%clk 0:00:13]} 53. f4 {[%clk 0:00:19]}  Kc5 {[%clk 0:00:14]} 54. Kf3 {[%clk 0:00:20]}  Kd6 {[%clk 0:00:14]} 55. Kg4 {[%clk 0:00:21]}  Ke7 {[%clk 0:00:15]} 56. Kg5 {[%clk 0:00:21]}  Kf8 {[%clk 0:00:14]} 57. Ng4 {[%clk 0:00:22]}  Kg7 {[%clk 0:00:14]} 58. Ne3 {[%clk 0:00:23]}  Kf7 {[%clk 0:00:15]} 59. f5 {[%clk 0:00:24]}  Kg7 {[%clk 0:00:15]} 60. f6+ {[%clk 0:00:25]}  Kf7 {[%clk 0:00:16]} 61. Kf5 {[%clk 0:00:25]}  Kf8 {[%clk 0:00:17]} 62. Ke6 {[%clk 0:00:26]}  Ke8 {[%clk 0:00:17]} 63. f7+ {[%clk 0:00:27]}  Kf8 {[%clk 0:00:17]} 64. Nc4 {[%clk 0:00:27]}  Kg7 {[%clk 0:00:17]} 65. Ne5 {[%clk 0:00:28]}  Kf8 {[%clk 0:00:17]} 66. Nd7+ {[%clk 0:00:26]}  Kg7 {[%clk 0:00:18]} 67. f8=Q+ {[%clk 0:00:26]}  Kh7 {[%clk 0:00:18]} 68. Qf6 {[%clk 0:00:23]}  Kg8 {[%clk 0:00:18]} 69. Qg5+ {[%clk 0:00:23]}  Kh7 {[%clk 0:00:18]} 70. Kf7 {[%clk 0:00:22]}  Kh8 {[%clk 0:00:19]} 71. Nc5 {[%clk 0:00:19]}  Kh7 {[%clk 0:00:19]} 72. Nb3 {[%clk 0:00:18]}  Kh8 {[%clk 0:00:19]} 73. Nd4 {[%clk 0:00:19]}  Kh7 {[%clk 0:00:20]} 74. Nf5 {[%clk 0:00:18]}  Kh8 {[%clk 0:00:21]} 75. Qh5# {[%clk 0:00:18]} 1-0


[Site "https://www.chess.com"]